[Event "Titled Tuesday Blitz August 15 Early 2023"]
[White "Sava, Christiansen-Danut-Eugen"]
[Black "Bach Ngoc Thuy Duong"]
[WhiteFideId "1210114"]
[BlackFideId "12408956"]
[WhiteElo "2131"]
[BlackElo "2518"]
[Result "0-1"]
[Round "3"]
[TimeControl "180+1"]
[Date "2023.08.15"]
[WhiteClock "0:00:00"]
[BlackClock "0:00:05"]
[Board "165"]

1. d4 {[%clk 0:03:00]}  d5 {[%clk 0:02:54]} 2. c4 {[%clk 0:02:59]}  e6 {[%clk 0:02:53]} 3. g3 {[%clk 0:02:57]}  c6 {[%clk 0:02:51]} 4. Bg2 {[%clk 0:02:56]}  Nf6 {[%clk 0:02:45]} 5. Bf1 {[%clk 0:02:56]}  dxc4 {[%clk 0:02:44]} 6. Bg2 {[%clk 0:02:52]}  b5 {[%clk 0:02:43]} 7. Nf3 {[%clk 0:02:51]}  Bb7 {[%clk 0:02:41]} 8. O-O {[%clk 0:02:51]}  Nbd7 {[%clk 0:02:40]} 9. a4 {[%clk 0:02:51]}  a6 {[%clk 0:02:39]} 10. Nbd2 {[%clk 0:02:51]}  Be7 {[%clk 0:02:35]} 11. e4 {[%clk 0:02:51]}  O-O {[%clk 0:02:32]} 12. e5 {[%clk 0:02:51]}  Nd5 {[%clk 0:02:32]} 13. Ne4 {[%clk 0:02:49]}  h6 {[%clk 0:02:31]} 14. g4 {[%clk 0:02:43]}  c5 {[%clk 0:02:19]} 15. g5 {[%clk 0:02:43]}  h5 {[%clk 0:02:04]} 16. h4 {[%clk 0:02:32]}  cxd4 {[%clk 0:02:04]} 17. Qxd4 {[%clk 0:02:30]}  Qb6 {[%clk 0:01:45]} 18. Qxb6 {[%clk 0:02:14]}  N7xb6 {[%clk 0:01:43]} 19. g6 {[%clk 0:02:15]}  fxg6 {[%clk 0:01:41]} 20. axb5 {[%clk 0:02:13]}  axb5 {[%clk 0:01:40]} 21. Rxa8 {[%clk 0:02:14]}  Bxa8 {[%clk 0:01:38]} 22. Bg5 {[%clk 0:02:15]}  Bxg5 {[%clk 0:01:21]} 23. Nexg5 {[%clk 0:02:14]}  Nf4 {[%clk 0:01:21]} 24. Bh1 {[%clk 0:02:02]}  Nbd5 {[%clk 0:01:05]} 25. Nd4 {[%clk 0:01:49]}  Nc7 {[%clk 0:01:05]} 26. Bxa8 {[%clk 0:01:48]}  Rxa8 {[%clk 0:01:05]} 27. Kh2 {[%clk 0:01:40]}  Ra6 {[%clk 0:00:58]} 28. Kg3 {[%clk 0:01:37]}  Nd3 {[%clk 0:00:57]} 29. b3 {[%clk 0:01:25]}  cxb3 {[%clk 0:00:41]} 30. Nxb3 {[%clk 0:01:26]}  Nxe5 {[%clk 0:00:41]} 31. Nc5 {[%clk 0:01:23]}  Rc6 {[%clk 0:00:40]} 32. Nce4 {[%clk 0:01:19]}  Nd5 {[%clk 0:00:32]} 33. Rb1 {[%clk 0:01:17]}  b4 {[%clk 0:00:31]} 34. f3 {[%clk 0:01:03]}  Nd7 {[%clk 0:00:16]} 35. Rb2 {[%clk 0:00:50]}  Kf8 {[%clk 0:00:16]} 36. Nd2 {[%clk 0:00:38]}  Ke7 {[%clk 0:00:15]} 37. Nb3 {[%clk 0:00:38]}  Rc4 {[%clk 0:00:12]} 38. Re2 {[%clk 0:00:36]}  Nf8 {[%clk 0:00:10]} 39. Na5 {[%clk 0:00:30]}  Rc3 {[%clk 0:00:10]} 40. Rb2 {[%clk 0:00:14]}  Nd7 {[%clk 0:00:06]} 41. Re2 {[%clk 0:00:14]}  Nc5 {[%clk 0:00:06]} 42. Kf2 {[%clk 0:00:03]}  b3 {[%clk 0:00:03]} 43. Kg3 {[%clk 0:00:04]}  Rc2 {[%clk 0:00:03]} 44. Re1 {[%clk 0:00:03]}  b2 {[%clk 0:00:03]} 45. Rb1 {[%clk 0:00:03]}  Nc3 {[%clk 0:00:03]} 46. Rxb2 {[%clk 0:00:02]}  Rxb2 {[%clk 0:00:03]} 47. Nc4 {[%clk 0:00:03]}  Rc2 {[%clk 0:00:03]} 48. Ne5 {[%clk 0:00:03]}  Ne2+ {[%clk 0:00:03]} 49. Kh3 {[%clk 0:00:03]}  Nf4+ {[%clk 0:00:03]} 50. Kg3 {[%clk 0:00:03]}  Ncd3 {[%clk 0:00:03]} 51. Nxd3 {[%clk 0:00:02]}  Nxd3 {[%clk 0:00:04]} 52. Ne4 {[%clk 0:00:02]}  e5 {[%clk 0:00:04]} 53. Ng5 {[%clk 0:00:00]}  Nf4 {[%clk 0:00:05]} 0-1


[Site "https://www.chess.com"]

[Event "Titled Tuesday Blitz August 15 Early 2023"]
[White "Rodchenkov, Sergey D."]
[Black "Osiecki, Stanislaw"]
[WhiteFideId "4168712"]
[BlackFideId "1102990"]
[WhiteElo "2508"]
[BlackElo "2049"]
[Result "1-0"]
[Round "3"]
[TimeControl "180+1"]
[Date "2023.08.15"]
[WhiteClock "0:00:24"]
[BlackClock "0:00:00"]
[Board "169"]

1. e4 {[%clk 0:03:00]}  e6 {[%clk 0:03:00]} 2. d4 {[%clk 0:03:00]}  d5 {[%clk 0:03:00]} 3. Nc3 {[%clk 0:03:01]}  Bb4 {[%clk 0:02:59]} 4. e5 {[%clk 0:03:01]}  c5 {[%clk 0:02:59]} 5. a3 {[%clk 0:03:01]}  Bxc3+ {[%clk 0:02:58]} 6. bxc3 {[%clk 0:03:02]}  Qc7 {[%clk 0:02:59]} 7. Qg4 {[%clk 0:03:02]}  f5 {[%clk 0:02:58]} 8. Qg3 {[%clk 0:02:46]}  cxd4 {[%clk 0:02:57]} 9. cxd4 {[%clk 0:02:43]}  Ne7 {[%clk 0:02:57]} 10. Bd3 {[%clk 0:02:36]}  Qc3+ {[%clk 0:02:55]} 11. Ke2 {[%clk 0:02:35]}  Qxa1 {[%clk 0:02:55]} 12. Nf3 {[%clk 0:02:34]}  Qc3 {[%clk 0:02:36]} 13. Qxg7 {[%clk 0:02:34]}  Rg8 {[%clk 0:02:35]} 14. Qxh7 {[%clk 0:02:34]}  Nbc6 {[%clk 0:02:21]} 15. Be3 {[%clk 0:02:32]}  Bd7 {[%clk 0:02:17]} 16. Qh5+ {[%clk 0:02:31]}  Kd8 {[%clk 0:02:11]} 17. Rb1 {[%clk 0:02:23]}  Kc7 {[%clk 0:01:57]} 18. Bd2 {[%clk 0:02:19]}  Qxa3 {[%clk 0:01:52]} 19. g3 {[%clk 0:02:03]}  Rac8 {[%clk 0:01:42]} 20. c3 {[%clk 0:01:44]}  Kb8 {[%clk 0:01:34]} 21. h4 {[%clk 0:01:43]}  Na5 {[%clk 0:01:12]} 22. Qf7 {[%clk 0:01:30]}  Nc4 {[%clk 0:00:49]} 23. Bxc4 {[%clk 0:01:14]}  dxc4 {[%clk 0:00:47]} 24. h5 {[%clk 0:01:13]}  Rcf8 {[%clk 0:00:45]} 25. Qh7 {[%clk 0:01:10]}  Rh8 {[%clk 0:00:40]} 26. Qg7 {[%clk 0:01:10]}  Rfg8 {[%clk 0:00:34]} 27. Qf6 {[%clk 0:01:09]}  Nd5 {[%clk 0:00:26]} 28. Qf7 {[%clk 0:01:08]}  Bc6 {[%clk 0:00:22]} 29. Rc1 {[%clk 0:00:49]}  Qe7 {[%clk 0:00:15]} 30. Qxe7 {[%clk 0:00:48]}  Nxe7 {[%clk 0:00:15]} 31. Ng5 {[%clk 0:00:47]}  Bd7 {[%clk 0:00:14]} 32. Rh1 {[%clk 0:00:45]}  Rg7 {[%clk 0:00:12]} 33. h6 {[%clk 0:00:45]}  Rg6 {[%clk 0:00:12]} 34. h7 {[%clk 0:00:44]}  Rg7 {[%clk 0:00:12]} 35. Rh6 {[%clk 0:00:44]}  Rg6 {[%clk 0:00:10]} 36. Rh5 {[%clk 0:00:39]}  Rg7 {[%clk 0:00:07]} 37. Bc1 {[%clk 0:00:29]}  Ng6 {[%clk 0:00:06]} 38. Ba3 {[%clk 0:00:28]}  a5 {[%clk 0:00:05]} 39. d5 {[%clk 0:00:28]}  exd5 {[%clk 0:00:04]} 40. Bd6+ {[%clk 0:00:28]}  Ka7 {[%clk 0:00:04]} 41. e6 {[%clk 0:00:29]}  Be8 {[%clk 0:00:00]} 42. Rh6 {[%clk 0:00:24]} 1-0


[Site "https://www.chess.com"]

[Event "Titled Tuesday Blitz August 15 Early 2023"]
[White "Samarth J Rao"]
[Black "djathtaspogradec"]
[WhiteFideId "46652370"]
[WhiteElo "1993"]
[BlackElo "2507"]
[Result "1-0"]
[Round "3"]
[TimeControl "180+1"]
[Date "2023.08.15"]
[WhiteClock "0:00:11"]
[BlackClock "0:00:01"]
[Board "170"]

1. e4 {[%clk 0:03:00]}  g6 {[%clk 0:02:59]} 2. g3 {[%clk 0:02:57]}  Bg7 {[%clk 0:03:00]} 3. Bg2 {[%clk 0:02:56]}  c5 {[%clk 0:03:01]} 4. Ne2 {[%clk 0:02:54]}  Nc6 {[%clk 0:03:02]} 5. Nbc3 {[%clk 0:02:51]}  e6 {[%clk 0:03:02]} 6. O-O {[%clk 0:02:51]}  Nge7 {[%clk 0:03:03]} 7. d3 {[%clk 0:02:49]}  d5 {[%clk 0:03:03]} 8. exd5 {[%clk 0:02:49]}  exd5 {[%clk 0:03:04]} 9. Nf4 {[%clk 0:02:46]}  d4 {[%clk 0:03:04]} 10. Ncd5 {[%clk 0:02:47]}  O-O {[%clk 0:03:03]} 11. Nxe7+ {[%clk 0:02:46]}  Nxe7 {[%clk 0:03:02]} 12. Re1 {[%clk 0:02:44]}  Rb8 {[%clk 0:03:01]} 13. Nh3 {[%clk 0:02:39]}  Nd5 {[%clk 0:02:58]} 14. Nf4 {[%clk 0:02:36]}  Nc7 {[%clk 0:02:58]} 15. Qe2 {[%clk 0:02:30]}  Re8 {[%clk 0:02:51]} 16. Qd1 {[%clk 0:02:26]}  Rxe1+ {[%clk 0:02:49]} 17. Qxe1 {[%clk 0:02:25]}  Bf5 {[%clk 0:02:45]} 18. Bd2 {[%clk 0:02:23]}  Qd6 {[%clk 0:02:44]} 19. Qf1 {[%clk 0:02:21]}  b5 {[%clk 0:02:44]} 20. Re1 {[%clk 0:02:16]}  Rc8 {[%clk 0:02:34]} 21. Bf3 {[%clk 0:02:11]}  h5 {[%clk 0:02:09]} 22. Qg2 {[%clk 0:02:09]}  c4 {[%clk 0:02:05]} 23. Be4 {[%clk 0:02:03]}  Bd7 {[%clk 0:02:02]} 24. Ba5 {[%clk 0:01:56]}  Ne6 {[%clk 0:01:53]} 25. Nxe6 {[%clk 0:01:54]}  Bxe6 {[%clk 0:01:54]} 26. a3 {[%clk 0:01:50]}  cxd3 {[%clk 0:01:50]} 27. Bxd3 {[%clk 0:01:50]}  Qd7 {[%clk 0:01:27]} 28. Qf3 {[%clk 0:01:41]}  Bg4 {[%clk 0:01:25]} 29. Qf4 {[%clk 0:01:41]}  Kh7 {[%clk 0:01:14]} 30. Qg5 {[%clk 0:01:33]}  Bh6 {[%clk 0:00:37]} 31. Qe7 {[%clk 0:01:30]}  Bf8 {[%clk 0:00:30]} 32. Qxd7 {[%clk 0:01:23]}  Bxd7 {[%clk 0:00:31]} 33. Re5 {[%clk 0:01:19]}  Bg7 {[%clk 0:00:22]} 34. Rxh5+ {[%clk 0:01:17]}  Kg8 {[%clk 0:00:22]} 35. Rd5 {[%clk 0:01:12]}  Bc6 {[%clk 0:00:22]} 36. Rd8+ {[%clk 0:01:11]}  Rxd8 {[%clk 0:00:22]} 37. Bxd8 {[%clk 0:01:11]}  Kf8 {[%clk 0:00:23]} 38. Bc7 {[%clk 0:01:09]}  Ke8 {[%clk 0:00:21]} 39. Bb8 {[%clk 0:01:09]}  a6 {[%clk 0:00:21]} 40. Ba7 {[%clk 0:01:09]}  Kd7 {[%clk 0:00:21]} 41. Bc5 {[%clk 0:01:10]}  Ke6 {[%clk 0:00:20]} 42. f4 {[%clk 0:01:04]}  Kd5 {[%clk 0:00:20]} 43. b4 {[%clk 0:01:04]}  f5 {[%clk 0:00:20]} 44. Kf2 {[%clk 0:01:04]}  Bd7 {[%clk 0:00:20]} 45. Be2 {[%clk 0:01:03]}  Be6 {[%clk 0:00:19]} 46. Bd3 {[%clk 0:01:01]}  Bd7 {[%clk 0:00:19]} 47. h3 {[%clk 0:01:01]}  Bf6 {[%clk 0:00:20]} 48. Kf3 {[%clk 0:01:00]}  Bg7 {[%clk 0:00:20]} 49. g4 {[%clk 0:01:00]}  Bf6 {[%clk 0:00:20]} 50. Be2 {[%clk 0:00:56]}  Bg7 {[%clk 0:00:20]} 51. Be7 {[%clk 0:00:55]}  Ke6 {[%clk 0:00:20]} 52. Bd8 {[%clk 0:00:51]}  Kd5 {[%clk 0:00:21]} 53. Bd3 {[%clk 0:00:50]}  Bf8 {[%clk 0:00:20]} 54. gxf5 {[%clk 0:00:50]}  gxf5 {[%clk 0:00:20]} 55. h4 {[%clk 0:00:49]}  Be6 {[%clk 0:00:19]} 56. h5 {[%clk 0:00:48]}  Bf7 {[%clk 0:00:19]} 57. Bxf5 {[%clk 0:00:47]}  Bxh5+ {[%clk 0:00:19]} 58. Bg4 {[%clk 0:00:47]}  Bf7 {[%clk 0:00:17]} 59. Ke2 {[%clk 0:00:46]}  Kc4 {[%clk 0:00:18]} 60. Kd2 {[%clk 0:00:45]}  Bd6 {[%clk 0:00:18]} 61. Be2+ {[%clk 0:00:44]}  Kd5 {[%clk 0:00:18]} 62. Bg5 {[%clk 0:00:44]}  Ke4 {[%clk 0:00:19]} 63. Bd3+ {[%clk 0:00:45]}  Kf3 {[%clk 0:00:19]} 64. f5 {[%clk 0:00:42]}  Kg4 {[%clk 0:00:19]} 65. Bf6 {[%clk 0:00:41]}  Bf4+ {[%clk 0:00:17]} 66. Ke2 {[%clk 0:00:41]}  Bc1 {[%clk 0:00:16]} 67. Bxd4 {[%clk 0:00:41]}  Bxa3 {[%clk 0:00:17]} 68. Bc3 {[%clk 0:00:37]}  Bc1 {[%clk 0:00:17]} 69. f6 {[%clk 0:00:33]}  Bg5 {[%clk 0:00:17]} 70. Be4 {[%clk 0:00:29]}  Kf4 {[%clk 0:00:16]} 71. Bb7 {[%clk 0:00:28]}  Kf5 {[%clk 0:00:14]} 72. Bc8+ {[%clk 0:00:27]}  Kg6 {[%clk 0:00:14]} 73. Bxa6 {[%clk 0:00:26]}  Bc4+ {[%clk 0:00:14]} 74. Kf3 {[%clk 0:00:22]}  Kf7 {[%clk 0:00:14]} 75. Ke4 {[%clk 0:00:21]}  Ke6 {[%clk 0:00:12]} 76. Bb7 {[%clk 0:00:21]}  Kd6 {[%clk 0:00:11]} 77. Kf5 {[%clk 0:00:19]}  Bh6 {[%clk 0:00:10]} 78. Kg6 {[%clk 0:00:19]}  Bf8 {[%clk 0:00:10]} 79. Bd4 {[%clk 0:00:19]}  Ke6 {[%clk 0:00:09]} 80. Bc5 {[%clk 0:00:19]}  Bd6 {[%clk 0:00:08]} 81. f7 {[%clk 0:00:15]}  Bxc5 {[%clk 0:00:06]} 82. bxc5 {[%clk 0:00:15]}  Ke7 {[%clk 0:00:07]} 83. c6 {[%clk 0:00:12]}  Bxf7+ {[%clk 0:00:07]} 84. Kf5 {[%clk 0:00:12]}  Bd5 {[%clk 0:00:07]} 85. Ke5 {[%clk 0:00:13]}  Bh1 {[%clk 0:00:07]} 86. Kd4 {[%clk 0:00:13]}  b4 {[%clk 0:00:07]} 87. Kc5 {[%clk 0:00:13]}  Kd8 {[%clk 0:00:07]} 88. Kb6 {[%clk 0:00:11]}  Ke7 {[%clk 0:00:01]} 89. c7 {[%clk 0:00:11]} 1-0


[Site "https://www.chess.com"]

[Event "Titled Tuesday Blitz August 15 Early 2023"]
[White "Skiadopoulos, Nikolaos"]
[Black "maksimys18"]
[WhiteFideId "4200772"]
[WhiteElo "1881"]
[BlackElo "2507"]
[Result "0-1"]
[Round "3"]
[TimeControl "180+1"]
[Date "2023.08.15"]
[WhiteClock "0:01:27"]
[BlackClock "0:02:12"]
[Board "171"]

1. e4 {[%clk 0:03:00]}  e6 {[%clk 0:03:00]} 2. d4 {[%clk 0:02:59]}  d5 {[%clk 0:03:00]} 3. e5 {[%clk 0:02:59]}  c5 {[%clk 0:02:59]} 4. c3 {[%clk 0:02:59]}  Qb6 {[%clk 0:02:59]} 5. Nf3 {[%clk 0:02:59]}  Bd7 {[%clk 0:02:59]} 6. Bd3 {[%clk 0:02:56]}  Bb5 {[%clk 0:02:58]} 7. O-O {[%clk 0:02:55]}  Bxd3 {[%clk 0:02:57]} 8. Qxd3 {[%clk 0:02:55]}  Nc6 {[%clk 0:02:57]} 9. dxc5 {[%clk 0:02:54]}  Bxc5 {[%clk 0:02:57]} 10. b4 {[%clk 0:02:54]}  Bf8 {[%clk 0:02:57]} 11. b5 {[%clk 0:02:51]}  Nce7 {[%clk 0:02:51]} 12. Be3 {[%clk 0:02:48]}  Qc7 {[%clk 0:02:51]} 13. Bd4 {[%clk 0:02:47]}  Nh6 {[%clk 0:02:50]} 14. Nbd2 {[%clk 0:02:40]}  Nhf5 {[%clk 0:02:47]} 15. g4 {[%clk 0:02:38]}  Nh6 {[%clk 0:02:41]} 16. h3 {[%clk 0:02:37]}  Ng6 {[%clk 0:02:34]} 17. Qe3 {[%clk 0:02:28]}  Be7 {[%clk 0:02:33]} 18. Bxa7 {[%clk 0:02:23]}  O-O {[%clk 0:02:27]} 19. Bd4 {[%clk 0:02:21]}  f6 {[%clk 0:02:23]} 20. exf6 {[%clk 0:02:17]}  Bxf6 {[%clk 0:02:22]} 21. Bxf6 {[%clk 0:02:17]}  Rxf6 {[%clk 0:02:22]} 22. g5 {[%clk 0:02:17]}  Nf5 {[%clk 0:02:21]} 23. Qe2 {[%clk 0:02:03]}  Nf4 {[%clk 0:02:18]} 24. Qd1 {[%clk 0:01:53]}  Nxh3+ {[%clk 0:02:16]} 25. Kg2 {[%clk 0:01:53]}  Nf4+ {[%clk 0:02:15]} 26. Kg1 {[%clk 0:01:51]}  Rg6 {[%clk 0:02:14]} 27. c4 {[%clk 0:01:40]}  Nh3+ {[%clk 0:02:13]} 28. Kg2 {[%clk 0:01:40]}  Nxg5 {[%clk 0:02:13]} 29. Nxg5 {[%clk 0:01:39]}  Rxg5+ {[%clk 0:02:13]} 30. Kh3 {[%clk 0:01:27]}  Rg3+ {[%clk 0:02:12]} 0-1


[Site "https://www.chess.com"]

[Event "Titled Tuesday Blitz August 15 Early 2023"]
[White "Da Paz, Leonardo Gadelha"]
[Black "Shcherbin, Matvei"]
[WhiteFideId "2109743"]
[BlackFideId "24125164"]
[WhiteElo "1868"]
[BlackElo "2736"]
[Result "0-1"]
[Round "3"]
[TimeControl "180+1"]
[Date "2023.08.15"]
[WhiteClock "0:01:48"]
[BlackClock "0:02:05"]
[Board "173"]

1. e4 {[%clk 0:02:58]}  c5 {[%clk 0:02:58]} 2. Nf3 {[%clk 0:02:53]}  e6 {[%clk 0:02:54]} 3. Nc3 {[%clk 0:02:52]}  Nc6 {[%clk 0:02:54]} 4. a3 {[%clk 0:02:52]}  Nf6 {[%clk 0:02:53]} 5. d4 {[%clk 0:02:52]}  cxd4 {[%clk 0:02:52]} 6. Nxd4 {[%clk 0:02:53]}  Bc5 {[%clk 0:02:52]} 7. Nxc6 {[%clk 0:02:52]}  bxc6 {[%clk 0:02:52]} 8. e5 {[%clk 0:02:52]}  Nd5 {[%clk 0:02:51]} 9. Ne4 {[%clk 0:02:51]}  Be7 {[%clk 0:02:51]} 10. Qg4 {[%clk 0:02:51]}  g6 {[%clk 0:02:43]} 11. Bh6 {[%clk 0:02:48]}  Qb6 {[%clk 0:02:41]} 12. Bc1 {[%clk 0:02:34]}  f5 {[%clk 0:02:29]} 13. exf6 {[%clk 0:02:33]}  Nxf6 {[%clk 0:02:29]} 14. Nxf6+ {[%clk 0:02:32]}  Bxf6 {[%clk 0:02:30]} 15. Bd3 {[%clk 0:02:25]}  Bxb2 {[%clk 0:02:24]} 16. Rb1 {[%clk 0:02:00]}  Bc3+ {[%clk 0:02:21]} 17. Kd1 {[%clk 0:02:00]}  Qxb1 {[%clk 0:02:13]} 18. Bxg6+ {[%clk 0:01:59]}  hxg6 {[%clk 0:02:09]} 19. Qxg6+ {[%clk 0:01:58]}  Kd8 {[%clk 0:02:10]} 20. Ke2 {[%clk 0:01:48]}  Qb5+ {[%clk 0:02:05]} 0-1


[Site "https://www.chess.com"]

[Event "Titled Tuesday Blitz August 15 Early 2023"]
[White "sebastianmarinp"]
[Black "Zavgorodniy, Sergiy"]
[BlackFideId "14110148"]
[WhiteElo "2392"]
[BlackElo "2586"]
[Result "1/2-1/2"]
[Round "3"]
[TimeControl "180+1"]
[Date "2023.08.15"]
[WhiteClock "0:00:09"]
[BlackClock "0:01:07"]
[Board "174"]

1. e4 {[%clk 0:03:00]}  c6 {[%clk 0:02:59]} 2. d4 {[%clk 0:02:59]}  d5 {[%clk 0:03:00]} 3. e5 {[%clk 0:03:00]}  Bf5 {[%clk 0:03:00]} 4. Nf3 {[%clk 0:02:59]}  e6 {[%clk 0:03:00]} 5. Be2 {[%clk 0:03:00]}  Nd7 {[%clk 0:03:00]} 6. Nbd2 {[%clk 0:02:58]}  a6 {[%clk 0:02:59]} 7. Nb3 {[%clk 0:02:57]}  c5 {[%clk 0:02:59]} 8. Be3 {[%clk 0:02:47]}  Rc8 {[%clk 0:02:55]} 9. dxc5 {[%clk 0:02:44]}  Nxc5 {[%clk 0:02:49]} 10. Nfd4 {[%clk 0:02:34]}  Bg6 {[%clk 0:02:47]} 11. O-O {[%clk 0:02:33]}  Nxb3 {[%clk 0:02:44]} 12. axb3 {[%clk 0:02:34]}  Ne7 {[%clk 0:02:44]} 13. f4 {[%clk 0:02:34]}  Nf5 {[%clk 0:02:43]} 14. Nxf5 {[%clk 0:02:31]}  Bxf5 {[%clk 0:02:44]} 15. c3 {[%clk 0:02:28]}  Bc5 {[%clk 0:02:42]} 16. Bxc5 {[%clk 0:02:26]}  Rxc5 {[%clk 0:02:43]} 17. b4 {[%clk 0:02:27]}  Rc8 {[%clk 0:02:39]} 18. Qd4 {[%clk 0:02:25]}  O-O {[%clk 0:02:37]} 19. b5 {[%clk 0:02:22]}  axb5 {[%clk 0:02:36]} 20. Bxb5 {[%clk 0:02:22]}  Qc7 {[%clk 0:02:35]} 21. h3 {[%clk 0:02:12]}  Be4 {[%clk 0:02:34]} 22. Be2 {[%clk 0:02:08]}  Ra8 {[%clk 0:02:33]} 23. Kf2 {[%clk 0:01:54]}  h6 {[%clk 0:02:31]} 24. Bf3 {[%clk 0:01:52]}  Bxf3 {[%clk 0:02:30]} 25. Kxf3 {[%clk 0:01:52]}  b6 {[%clk 0:02:29]} 26. g4 {[%clk 0:01:48]}  Ra7 {[%clk 0:02:28]} 27. Rxa7 {[%clk 0:01:46]}  Qxa7 {[%clk 0:02:29]} 28. f5 {[%clk 0:01:42]}  Rc8 {[%clk 0:02:25]} 29. Kg3 {[%clk 0:01:29]}  Rc4 {[%clk 0:02:23]} 30. Qf2 {[%clk 0:01:29]}  Rc8 {[%clk 0:02:18]} 31. f6 {[%clk 0:01:25]}  Qc7 {[%clk 0:02:16]} 32. Qf4 {[%clk 0:01:21]}  Qc4 {[%clk 0:02:05]} 33. fxg7 {[%clk 0:01:09]}  Qxf4+ {[%clk 0:02:03]} 34. Rxf4 {[%clk 0:01:04]}  Kxg7 {[%clk 0:02:03]} 35. Rb4 {[%clk 0:01:04]}  Rc6 {[%clk 0:02:03]} 36. Kf4 {[%clk 0:01:03]}  f6 {[%clk 0:02:03]} 37. h4 {[%clk 0:01:02]}  Kg6 {[%clk 0:01:53]} 38. exf6 {[%clk 0:00:56]}  Kxf6 {[%clk 0:01:54]} 39. g5+ {[%clk 0:00:52]}  hxg5+ {[%clk 0:01:55]} 40. hxg5+ {[%clk 0:00:52]}  Kg6 {[%clk 0:01:55]} 41. Kg4 {[%clk 0:00:41]}  e5 {[%clk 0:01:54]} 42. Rb5 {[%clk 0:00:41]}  Rd6 {[%clk 0:01:53]} 43. c4 {[%clk 0:00:26]}  dxc4 {[%clk 0:01:37]} 44. Rxe5 {[%clk 0:00:27]}  Rd4+ {[%clk 0:01:37]} 45. Kf3 {[%clk 0:00:26]}  Rd3+ {[%clk 0:01:37]} 46. Ke4 {[%clk 0:00:22]}  Rb3 {[%clk 0:01:37]} 47. Kd4 {[%clk 0:00:21]}  b5 {[%clk 0:01:37]} 48. Re2 {[%clk 0:00:19]}  Kxg5 {[%clk 0:01:36]} 49. Kc5 {[%clk 0:00:20]}  Kf4 {[%clk 0:01:35]} 50. Kd4 {[%clk 0:00:20]}  Kf3 {[%clk 0:01:33]} 51. Rc2 {[%clk 0:00:19]}  Kf4 {[%clk 0:01:31]} 52. Rf2+ {[%clk 0:00:19]}  Kg5 {[%clk 0:01:31]} 53. Kc5 {[%clk 0:00:13]}  Kg4 {[%clk 0:01:30]} 54. Kd4 {[%clk 0:00:13]}  Kg3 {[%clk 0:01:29]} 55. Rc2 {[%clk 0:00:13]}  Kg4 {[%clk 0:01:26]} 56. Rg2+ {[%clk 0:00:12]}  Kf5 {[%clk 0:01:26]} 57. Rc2 {[%clk 0:00:13]}  Ke6 {[%clk 0:01:26]} 58. Kc5 {[%clk 0:00:12]}  Ke5 {[%clk 0:01:26]} 59. Re2+ {[%clk 0:00:11]}  Kf5 {[%clk 0:01:26]} 60. Kd4 {[%clk 0:00:11]}  Kf6 {[%clk 0:01:26]} 61. Kc5 {[%clk 0:00:10]}  Kf7 {[%clk 0:01:26]} 62. Kd4 {[%clk 0:00:11]}  Kg6 {[%clk 0:01:22]} 63. Kc5 {[%clk 0:00:10]}  Kg5 {[%clk 0:01:22]} 64. Kd4 {[%clk 0:00:11]}  Kg4 {[%clk 0:01:14]} 65. Rf2 {[%clk 0:00:10]}  Kg3 {[%clk 0:01:12]} 66. Rc2 {[%clk 0:00:11]}  Kf3 {[%clk 0:01:10]} 67. Rc3+ {[%clk 0:00:10]}  Rxc3 {[%clk 0:01:10]} 68. Kxc3 {[%clk 0:00:09]}  Ke3 {[%clk 0:01:08]} 69. Kb4 {[%clk 0:00:09]}  Kd3 {[%clk 0:01:05]} 70. Kxb5 {[%clk 0:00:09]}  c3 {[%clk 0:01:06]} 71. bxc3 {[%clk 0:00:09]}  Kxc3 {[%clk 0:01:07]} 1/2-1/2


[Site "https://www.chess.com"]